bitfinex/quotes_BTCUSD_20250922
["timestamp","ask_amount","ask_price","bid_price","bid_amount"]
[1758544925365,4.51524227,112860.0,112850.0,61.01527839]
[1758544925568,4.51524227,112860.0,112850.0,61.03848839]
[1758544927178,4.50674227,112860.0,112850.0,61.03848839]
[1758544927344,4.5067439,112860.0,112850.0,61.01527839]
[1758544927752,4.5067439,112860.0,112850.0,61.03848839]
[1758544928150,4.49284518,112860.0,112850.0,61.03848839]
[1758544928702,5.21114513,112860.0,112850.0,61.00084829]
[1758544928916,5.21114513,112860.0,112850.0,60.92891879]
[1758544929480,5.23470678,112860.0,112850.0,60.92891879]
[1758544929895,5.24581678,112860.0,112850.0,60.92891879]
[1758544930126,5.25222678,112860.0,112850.0,60.92891879]
[1758544931099,5.26612625,112860.0,112850.0,60.92891879]
[1758544931304,5.25971625,112860.0,112850.0,60.92891879]
[1758544931511,5.25710625,112860.0,112850.0,60.92891879]
[1758544932556,4.40942108,112860.0,112850.0,60.92891879]
[1758544932738,4.43298449,112860.0,112850.0,60.92891879]
[1758544933031,4.40930284,112860.0,112850.0,60.93197879]
[1758544933278,4.40930284,112860.0,112850.0,60.95640879]
[1758544934436,3.26710284,112860.0,112850.0,60.95640879]
[1758544934642,4.40930284,112860.0,112850.0,60.95640879]
[1758544935654,3.26710652,112860.0,112850.0,60.95640879]
[1758544935874,4.40930652,112860.0,112850.0,60.95640879]
[1758544936581,4.0795065,112860.0,112850.0,60.95640879]
[1758544936813,2.92340703,112860.0,112850.0,60.95640879]
[1758544937033,3.76560703,112860.0,112850.0,60.95640879]
[1758544938011,2.62301873,112860.0,112850.0,60.95640879]
[1758544938214,3.76521873,112860.0,112850.0,60.95640879]
[1758544938846,3.84455931,112860.0,112850.0,60.87582487]
[1758544939005,3.76521873,112860.0,112850.0,60.87582487]
[1758544939635,3.77911774,112860.0,112850.0,60.87582487]
[1758544941550,3.77911797,112860.0,112850.0,60.87582487]
[1758544942340,2.62841797,112860.0,112850.0,60.87582487]
[1758544942516,3.77069797,112860.0,112850.0,60.87582487]
[1758544942883,3.75679896,112860.0,112850.0,60.87582487]
[1758544943514,3.70679896,112860.0,112850.0,60.87582487]
[1758544943730,2.56451896,112860.0,112850.0,60.87005304]
[1758544943956,4.00679896,112860.0,112850.0,60.87005304]
[1758544944539,2.86451896,112860.0,112850.0,60.87005304]
[1758544944764,4.00679896,112860.0,112850.0,60.87005304]
[1758544945344,4.00680116,112860.0,112850.0,60.87005304]
[1758544945678,4.33660202,112860.0,112850.0,60.87005304]
[1758544945878,4.35050073,112860.0,112850.0,60.87005304]
[1758544946723,4.32034883,112860.0,112850.0,60.87005304]
[1758544946946,4.34223443,112860.0,112850.0,60.87005304]
[1758544947177,4.3505006,112860.0,112850.0,60.87005304]
[1758544947419,4.3590006,112860.0,112850.0,60.87005304]
[1758544948795,3.69940092,112860.0,112850.0,60.87005304]
[1758544949063,4.3590006,112860.0,112850.0,60.78947043]
[1758544949867,4.35900062,112860.0,112850.0,60.78947043]
[1758544950069,3.21672062,112860.0,112850.0,60.78947043]
[1758544950295,4.32872872,112860.0,112850.0,60.78947043]
[1758544950760,4.35888062,112860.0,112850.0,60.78947043]
[1758544952358,4.35888196,112860.0,112850.0,60.78947043]
[1758544953532,4.35888196,112860.0,112850.0,60.76504043]
[1758544953739,4.35888196,112860.0,112850.0,60.78927043]
[1758544956348,4.35888206,112860.0,112850.0,60.78927043]
[1758544956840,4.35888208,112860.0,112850.0,60.78927043]
[1758544957293,4.14650237,112860.0,112850.0,60.78927043]
[1758544958187,4.13260366,112860.0,112850.0,60.78927043]
[1758544960429,4.13260578,112860.0,112850.0,60.78927043]
[1758544961091,4.14650451,112860.0,112850.0,60.78927043]
[1758544961986,4.13203787,112860.0,112850.0,60.78927043]
[1758544962187,4.14650715,112860.0,112850.0,60.78927043]
[1758544962828,4.13260842,112860.0,112850.0,60.78927043]
[1758544963283,4.13256842,112860.0,112850.0,60.78927043]
[1758544965223,2.99044842,112860.0,112850.0,60.78927043]
[1758544965454,4.13256842,112860.0,112850.0,60.78927043]
[1758544965666,4.14646718,112860.0,112850.0,60.78927043]
[1758544967350,4.14646718,112860.0,112850.0,60.71157601]
[1758544968153,4.14411909,112860.0,112850.0,60.71157601]
[1758544975071,4.13022033,112860.0,112850.0,60.71157601]
[1758544975722,4.13022033,112860.0,112850.0,60.68734601]
[1758544975944,4.13022033,112860.0,112850.0,60.71157601]
[1758544976165,4.13022033,112860.0,112850.0,60.68428601]
[1758544976368,4.12172033,112860.0,112850.0,60.68428601]
[1758544977073,4.12172033,112860.0,112850.0,60.70851601]
[1758544977309,4.12172033,112860.0,112850.0,60.71155601]
[1758544977468,4.12172033,112860.0,112850.0,60.63097572]
[1758544977865,4.13557918,112860.0,112850.0,60.63097572]
[1758544978062,2.66369934,112860.0,112850.0,60.62948572]
[1758544978296,3.81427934,112860.0,112850.0,60.62948572]
[1758544978895,4.14407918,112860.0,112850.0,60.62948572]
[1758544979442,3.00199918,112860.0,112850.0,60.62948572]
[1758544979601,4.14407918,112860.0,112850.0,60.62948572]
[1758544980641,4.04819918,112860.0,112850.0,60.62948572]
[1758544980827,2.67219934,112860.0,112850.0,60.62948572]
[1758544981029,3.81427934,112860.0,112850.0,60.62948572]
[1758544981466,4.14407918,112860.0,112850.0,60.62948572]
[1758544982874,4.13018033,112860.0,112850.0,60.62948572]
[1758544985813,4.14407905,112860.0,112850.0,60.62948572]
[1758544987478,4.14407905,112860.0,112850.0,60.5517915]
[1758544988686,3.51427921,112860.0,112850.0,60.5517915]
[1758544989468,3.84407905,112860.0,112850.0,60.5517915]
[1758544994844,3.9263704,112860.0,112850.0,60.5517915]
[1758544996208,3.92639084,112860.0,112850.0,60.5517915]
[1758544996861,3.92640028,112860.0,112850.0,60.5517915]
[1758544997630,3.92632028,112860.0,112850.0,60.47121159]
[1758544997848,3.91242156,112860.0,112850.0,60.47121159]
[1758544998902,3.92632026,112860.0,112850.0,60.47121159]
[1758544999108,3.8952862,112860.0,112850.0,60.47121159]
[1758544999689,3.92632739,112860.0,112850.0,60.47121159]
[1758545002449,3.92632739,112860.0,112850.0,60.46544003]
[1758545002889,3.91242869,112860.0,112850.0,60.46544003]
[1758545003267,3.91238869,112860.0,112850.0,60.46544003]
[1758545003730,3.91238884,112860.0,112850.0,60.46544003]
[1758545004690,2.77042884,112860.0,112850.0,60.46544003]
[1758545005111,2.52146591,112860.0,112850.0,60.5507097]
[1758545005297,2.02313521,112860.0,112850.0,60.5507097]
[1758545005493,2.84788113,112860.0,112850.0,60.46544003]
[1758545005865,2.72184923,112860.0,112850.0,60.46544003]
[1758545006108,3.17937864,112860.0,112850.0,60.46544003]
[1758545006296,2.82537864,112860.0,112850.0,60.46544003]
[1758545006532,2.67078462,112860.0,112850.0,60.46544003]
[1758545006748,3.17237864,112860.0,112850.0,60.46544003]
[1758545007274,3.07464851,112860.0,112850.0,60.46544003]
[1758545007474,1.92468851,112860.0,112850.0,60.46444003]
[1758545007833,1.75704851,112860.0,112850.0,60.46444003]
[1758545008031,2.81540851,112860.0,112850.0,60.46444003]
[1758545008847,2.81040851,112860.0,112850.0,60.46444003]
[1758545009418,2.80540851,112860.0,112850.0,60.46444003]
[1758545009772,2.80539076,112860.0,112850.0,60.46444003]
[1758545011631,2.80537675,112860.0,112850.0,60.46444003]
[1758545011843,2.81927305,112860.0,112850.0,60.46444003]
[1758545012861,2.80537675,112860.0,112850.0,60.46444003]
[1758545013552,2.04701675,112860.0,112850.0,60.46444003]
[1758545013747,3.18879956,112860.0,112850.0,60.46444003]
[1758545015472,1.99420443,112860.0,112850.0,60.64166643]
[1758545015723,1.28317041,112860.0,112850.0,60.7269361]
[1758545015850,1.56196709,112860.0,112850.0,60.7269361]
[1758545016080,0.89960709,112860.0,112850.0,60.64166643]
[1758545016283,1.31165867,112860.0,112850.0,60.64166643]
[1758545016479,1.29515323,112860.0,112850.0,60.64166643]
[1758545016710,1.63315323,112860.0,112850.0,60.64166643]
[1758545016912,1.63315323,112860.0,112850.0,60.7269361]
[1758545017116,1.63315323,112860.0,112850.0,60.64166643]
[1758545017325,1.63315323,112860.0,112850.0,60.64566643]
[1758545018135,1.88045024,112860.0,112850.0,60.64566643]
[1758545019043,1.63315323,112860.0,112850.0,60.64566643]
[1758545019248,1.88045024,112860.0,112850.0,60.64566643]
[1758545019610,1.38037024,112860.0,112850.0,60.64566643]
[1758545019984,1.38036532,112860.0,112850.0,60.64566643]
[1758545020189,1.38036532,112860.0,112850.0,60.67544939]
[1758545020364,1.39685938,112860.0,112850.0,60.67544939]
[1758545020772,1.39685861,112860.0,112850.0,60.67544939]
[1758545021184,0.37490754,112860.0,112850.0,60.9227464]
[1758545021482,1.12482051,112860.0,112850.0,60.89296344]
[1758545021883,1.12482051,112860.0,112850.0,60.64566643]
[1758545022066,0.36666051,112860.0,112850.0,60.64566643]
[1758545022263,1.12482051,112860.0,112850.0,60.64566643]
[1758545023127,0.36666051,112860.0,112850.0,60.64566643]
[1758545023251,1.12482051,112860.0,112850.0,60.93597052]
[1758545023909,1.12482051,112860.0,112850.0,60.68867351]
[1758545025943,0.36666051,112860.0,112850.0,60.68867351]
[1758545026162,1.12470051,112860.0,112850.0,60.68867351]
[1758545026368,1.12470051,112860.0,112850.0,60.93597052]
[1758545027907,1.13294549,112860.0,112850.0,60.68867351]
[1758545028131,1.3802425,112860.0,112850.0,60.68867351]
[1758545028362,1.13294549,112860.0,112850.0,60.68867351]
[1758545028619,1.3802425,112860.0,112850.0,60.68867351]
[1758545029185,1.62753951,112860.0,112850.0,60.64566643]
[1758545029599,1.13294549,112860.0,112850.0,60.64566643]
[1758545029816,1.65021393,112860.0,112850.0,60.44570003]
[1758545030021,1.94218463,112860.0,112850.0,60.44266003]
[1758545030229,1.94479463,112860.0,112850.0,60.44266003]
[1758545031070,1.95120463,112860.0,112850.0,60.44266003]
[1758545031568,1.95320463,112860.0,112850.0,60.44266003]
[1758545031774,1.58654698,112860.0,112850.0,60.44266003]
[1758545032195,1.58013698,112860.0,112850.0,60.44266003]
[1758545032619,1.60679757,112860.0,112850.0,60.43866003]
[1758545032999,1.60418757,112860.0,112850.0,60.43866003]
[1758545033205,1.60218757,112860.0,112850.0,60.43866003]
[1758545033571,1.60418757,112860.0,112850.0,60.43866003]
[1758545033780,1.94418757,112860.0,112850.0,60.43866003]
[1758545035825,1.9441972,112860.0,112850.0,60.43866003]
[1758545037624,1.1861572,112860.0,112850.0,60.43866003]
[1758545037856,2.3276372,112860.0,112850.0,60.46285003]
[1758545040493,1.02284232,112860.0,112850.0,60.46609003]
[1758545040658,2.16432232,112860.0,112850.0,60.46609003]
[1758545042391,1.48723302,112860.0,112850.0,60.46609003]
[1758545042606,0.8154283,112860.0,112850.0,60.46609003]
[1758545042807,1.78934232,112860.0,112850.0,60.46609003]
[1758545043154,1.96655302,112860.0,112850.0,60.46609003]
[1758545043357,1.96655447,112860.0,112850.0,60.46609003]
[1758545044490,1.96655447,112860.0,112850.0,60.43866003]
[1758545044704,2.52287148,112860.0,112850.0,60.43866003]
[1758545044914,2.27557447,112860.0,112850.0,60.43866003]
[1758545045344,2.26916447,112860.0,112850.0,60.43866003]
[1758545045549,1.50855447,112860.0,112850.0,60.43866003]
[1758545045776,2.93009338,112860.0,112850.0,60.43866003]
[1758545045980,2.93650338,112860.0,112850.0,60.43866003]
[1758545046121,2.68920637,112860.0,112850.0,60.43866003]
[1758545046325,2.93650338,112860.0,112850.0,60.43866003]
[1758545046755,2.93009338,112860.0,112850.0,60.43866003]
[1758545046958,2.91410756,112860.0,112850.0,60.43866003]
[1758545047968,1.78978504,112860.0,112850.0,60.43866003]
[1758545048197,1.79619183,112860.0,112850.0,60.43866003]
[1758545048351,2.91410435,112860.0,112850.0,60.43866003]
[1758545049132,2.98097074,112860.0,112850.0,60.43866003]
[1758545049985,2.99486808,112860.0,112850.0,60.43866003]
[1758545051064,2.99486547,112860.0,112850.0,60.43866003]
[1758545052145,3.00336547,112860.0,112850.0,60.43866003]
[1758545052354,3.00338324,112860.0,112850.0,60.43866003]
[1758545054365,2.49988922,112860.0,112850.0,60.44173003]
[1758545054568,2.99448324,112860.0,112850.0,60.46658003]
[1758545055608,2.99448422,112860.0,112850.0,60.46658003]
[1758545056408,2.99449737,112860.0,112850.0,60.46658003]
[1758545056615,2.58225274,112860.0,112850.0,60.46658003]
[1758545057577,2.58225274,112860.0,112850.0,60.46351003]
[1758545057800,1.44065274,112860.0,112850.0,60.46351003]
[1758545057998,1.44065274,112860.0,112850.0,60.46658003]
[1758545058212,2.58225274,112860.0,112850.0,60.46658003]
[1758545060916,1.44065274,112860.0,112850.0,60.46658003]
[1758545061116,2.58225274,112860.0,112850.0,60.46658003]
[1758545062151,2.58225552,112860.0,112850.0,60.46658003]
[1758545064127,3.07375552,112860.0,112850.0,60.46658003]
[1758545068059,3.07379552,112860.0,112850.0,60.46658003]
[1758545069140,3.08229552,112860.0,112850.0,60.46658003]
[1758545070778,1.94065552,112860.0,112850.0,60.46658003]
[1758545070981,3.08229552,112860.0,112850.0,60.46658003]
[1758545071167,2.35273989,112860.0,112850.0,60.5518497]
[1758545071365,2.63137989,112860.0,112850.0,60.46658003]
[1758545071767,3.00153179,112860.0,112850.0,60.46658003]
[1758545072199,2.99533696,112860.0,112850.0,60.46658003]
[1758545072397,3.0015366,112860.0,112850.0,60.46658003]
[1758545073996,3.01543255,112860.0,112850.0,60.46658003]
[1758545076551,2.51543255,112860.0,112850.0,60.46658003]
[1758545077204,1.73595255,112860.0,112850.0,60.46658003]
[1758545077412,0.86642995,112860.0,112850.0,60.64380643]
[1758545077620,0.75166995,112860.0,112850.0,60.64380643]
[1758545077824,1.61159395,112860.0,112850.0,60.72438012]
[1758545078042,1.50966995,112860.0,112850.0,60.72438012]
[1758545078248,1.50966995,112860.0,112850.0,60.64380643]
[1758545078981,1.62336095,112860.0,112850.0,60.64380643]
[1758545079180,1.62336095,112860.0,112850.0,60.46658003]
[1758545079393,1.80057165,112860.0,112850.0,60.46658003]
[1758545080856,1.80057363,112860.0,112850.0,60.46658003]
[1758545082582,1.79231225,112860.0,112850.0,60.46658003]
[1758545082792,1.80057242,112860.0,112850.0,60.46658003]
[1758545084103,1.29402332,112860.0,112850.0,60.53610851]
[1758545084315,1.62034372,112860.0,112850.0,60.53610851]
[1758545084500,1.62684872,112860.0,112850.0,60.53610851]
[1758545084749,1.61434672,112860.0,112850.0,60.53610851]
[1758545084924,1.61724872,112860.0,112850.0,60.53610851]
[1758545085076,1.50967072,112860.0,112850.0,60.64380643]
[1758545085272,1.64199972,112860.0,112850.0,60.64380643]
[1758545085561,1.63458772,112860.0,112850.0,60.46658003]
[1758545085780,1.81179842,112860.0,112850.0,60.46658003]
[1758545086597,1.63458772,112860.0,112850.0,60.64380643]
[1758545086799,1.49577477,112860.0,112850.0,60.7290761]
[1758545087002,0.40812837,112860.0,112850.0,60.7290761]
[1758545087219,1.16608837,112860.0,112850.0,60.9987761]
[1758545087430,0.79488076,112860.0,112850.0,60.9987761]
[1758545087873,1.13288076,112860.0,112850.0,60.9987761]
[1758545088712,0.79288076,112860.0,112850.0,60.9987761]
[1758545088920,1.12462059,112860.0,112850.0,61.0027761]
[1758545089137,1.13287959,112860.0,112850.0,61.0027761]
[1758545089587,1.13287959,112860.0,112850.0,60.74028003]
[1758545089588,1.4790421,112860.0,112850.0,60.74028003]
[1758545089785,1.48523529,112860.0,112850.0,60.74028003]
[1758545089992,1.88988799,112860.0,112850.0,60.44266003]
[1758545090628,1.88988799,112860.0,112850.0,60.46612003]
[1758545090971,1.88988799,112860.0,112850.0,60.44266003]
[1758545091211,1.89188799,112860.0,112850.0,60.46612003]
[1758545091550,1.88988799,112860.0,112850.0,60.46612003]
[1758545091789,1.88988799,112860.0,112850.0,60.46212003]
[1758545092015,1.89188799,112860.0,112850.0,60.46212003]
[1758545092227,1.89188799,112860.0,112850.0,60.46520003]
[1758545092640,1.89188966,112860.0,112850.0,60.46520003]
[1758545093785,1.89188966,112860.0,112850.0,60.44174003]
[1758545093990,1.89188966,112860.0,112850.0,60.46520003]
[1758545096558,1.89188966,112860.0,112850.0,60.43866003]
[1758545096559,2.22204156,112860.0,112850.0,60.43866003]
[1758545096784,2.52204156,112860.0,112850.0,60.43866003]
[1758545097011,2.53106156,112860.0,112850.0,60.43866003]
[1758545097233,2.52466597,112860.0,112850.0,60.43866003]
[1758545097440,2.53107597,112860.0,112850.0,60.43866003]
[1758545097847,2.54497222,112860.0,112850.0,60.43866003]
[1758545098066,2.53856222,112860.0,112850.0,60.43866003]
[1758545098437,2.54497222,112860.0,112850.0,60.43866003]
[1758545099879,2.53856222,112860.0,112850.0,60.43866003]
[1758545100425,2.91935222,112860.0,112850.0,60.43866003]
[1758545100632,1.77799222,112860.0,112850.0,60.46237003]
[1758545100852,2.91947222,112860.0,112850.0,60.46237003]
[1758545101209,2.91948247,112860.0,112850.0,60.46237003]
[1758545101396,2.91948247,112860.0,112850.0,60.43866003]
[1758545102215,2.91948109,112860.0,112850.0,60.43866003]
[1758545102426,1.77800109,112860.0,112850.0,60.43866003]
[1758545102623,1.78650109,112860.0,112850.0,60.43866003]
[1758545102826,2.44858109,112860.0,112850.0,60.46237003]
[1758545103033,2.92798109,112860.0,112850.0,60.46237003]
[1758545103255,2.92798109,112860.0,112850.0,60.46560003]
[1758545103466,3.23709396,112860.0,112850.0,60.46560003]
[1758545103684,2.09561396,112860.0,112850.0,60.46560003]
[1758545104317,3.23709396,112860.0,112850.0,60.46560003]
[1758545104895,3.30473872,112860.0,112850.0,60.46560003]
[1758545105104,3.30473694,112860.0,112850.0,60.46560003]
[1758545105457,3.30473694,112860.0,112850.0,60.43866003]
[1758545105867,3.30734694,112860.0,112850.0,60.43866003]
[1758545106071,3.31375694,112860.0,112850.0,60.43866003]
[1758545106287,3.29986069,112860.0,112850.0,60.43866003]
[1758545107877,3.28234069,112860.0,112850.0,60.43866003]
[1758545108106,3.28234069,112860.0,112850.0,60.46237003]
[1758545109038,3.28233953,112860.0,112850.0,60.43866003]
[1758545109239,3.29622626,112860.0,112850.0,60.43866003]
[1758545110772,2.15474626,112860.0,112850.0,60.44189003]
[1758545110955,2.15474626,112860.0,112850.0,60.46560003]
[1758545111156,3.29622626,112860.0,112850.0,60.46560003]
[1758545111953,2.15474626,112860.0,112850.0,60.46560003]
[1758545112195,3.29622626,112860.0,112850.0,60.46560003]
[1758545112828,3.30472626,112860.0,112850.0,60.46560003]
[1758545113252,3.30473127,112860.0,112850.0,60.46560003]
[1758545115304,3.30473312,112860.0,112850.0,60.46560003]
[1758545115527,1.76596196,112860.0,112850.0,60.46560003]
[1758545115667,3.22319233,112860.0,112850.0,60.46560003]
[1758545116071,2.82731233,112860.0,112850.0,60.46560003]
[1758545116271,1.78171233,112860.0,112850.0,60.46560003]
[1758545116484,2.11414593,112860.0,112850.0,60.46560003]
[1758545116680,2.52713323,112860.0,112850.0,60.64282643]
[1758545116913,2.70434393,112860.0,112850.0,60.46560003]
[1758545118136,1.76917323,112860.0,112850.0,60.64282643]
[1758545118361,1.89698133,112860.0,112850.0,60.64282643]
[1758545118565,2.08808818,112860.0,112850.0,60.46560003]
[1758545120100,1.15291748,112860.0,112850.0,60.64282643]
[1758545120295,1.08959048,112860.0,112850.0,60.64282643]
[1758545120510,1.42773648,112860.0,112850.0,60.64282643]
[1758545120925,1.42773648,112860.0,112850.0,60.66099015]
[1758545121728,1.72773648,112860.0,112850.0,60.66099015]
[1758545121947,0.08265748,112860.0,112850.0,60.93069015]
[1758545122225,1.18057748,112860.0,112850.0,60.93069015]
[1758545122443,1.42773648,112860.0,112850.0,60.93069015]
[1758545122656,1.18057748,112860.0,112850.0,60.93069015]
[1758545122859,1.42773648,112860.0,112850.0,60.93069015]
[1758545123264,0.42265748,112860.0,112850.0,60.93069015]
[1758545123476,1.42773648,112860.0,112850.0,60.93069015]
[1758545123643,1.42773648,112860.0,112850.0,60.91252643]
[1758545124450,1.42573648,112860.0,112850.0,60.64282643]
[1758545124797,1.42574079,112860.0,112850.0,60.64282643]
[1758545125215,1.41184464,112860.0,112850.0,60.64282643]
[1758545125408,1.41184362,112860.0,112850.0,60.64282643]
[1758545125612,1.65900262,112860.0,112850.0,60.64682643]
[1758545126220,1.16468462,112860.0,112850.0,60.64682643]
[1758545126424,1.65900262,112860.0,112850.0,60.64682643]
[1758545130023,1.16468462,112860.0,112850.0,60.64682643]
[1758545130230,1.65900262,112860.0,112850.0,60.64682643]
[1758545130432,1.63628,112860.0,112850.0,60.64682643]
[1758545132732,0.384042,112860.0,112850.0,60.64682643]
[1758545133117,1.389001,112860.0,112850.0,60.64682643]
[1758545133371,1.389001,112860.0,112850.0,60.7320961]
[1758545134970,0.76606854,112860.0,112850.0,60.7320961]
[1758545135175,1.004959,112860.0,112850.0,60.7320961]
[1758545135794,1.03161488,112860.0,112850.0,60.7320961]
[1758545135969,1.28703853,112860.0,112850.0,60.7320961]
[1758545136709,1.29611604,112860.0,112850.0,60.7320961]
[1758545136906,0.80179804,112860.0,112850.0,60.7320961]
[1758545137109,1.63611604,112860.0,112850.0,60.7320961]
[1758545139480,1.63607604,112860.0,112850.0,60.7320961]
[1758545139690,1.38065239,112860.0,112850.0,60.7320961]
[1758545140359,1.38892069,112860.0,112850.0,60.7320961]
[1758545140996,1.63607969,112860.0,112850.0,60.7320961]
[1758545141434,1.45864593,112860.0,112850.0,60.7320961]
[1758545141652,1.28700217,112860.0,112850.0,60.7320961]
[1758545143511,1.62700217,112860.0,112850.0,60.7320961]
[1758545143741,1.63604952,112860.0,112850.0,60.7320961]
[1758545144893,1.63605645,112860.0,112850.0,60.7320961]
[1758545145327,1.14173845,112860.0,112850.0,60.7320961]
[1758545145553,1.62778122,112860.0,112850.0,60.7320961]
[1758545145808,1.6360588,112860.0,112850.0,60.7320961]
[1758545146398,0.8782988,112860.0,112850.0,60.7320961]
[1758545146590,0.6311398,112860.0,112850.0,60.7320961]
[1758545146961,1.3888598,112860.0,112850.0,60.7320961]
[1758545147189,0.3839808,112860.0,112850.0,60.7320961]
[1758545147410,1.3888598,112860.0,112850.0,60.7320961]
[1758545148477,0.6311398,112860.0,112850.0,61.0017961]
[1758545148700,1.3888198,112860.0,112850.0,61.0017961]
[1758545149325,1.1416608,112860.0,112850.0,61.0017961]
[1758545149562,1.3888198,112860.0,112850.0,61.0017961]
[1758545150280,1.6359788,112860.0,112850.0,61.0017961]
[1758545150503,1.3888198,112860.0,112850.0,61.0017961]
[1758545150957,1.38882593,112860.0,112850.0,61.0017961]
[1758545151333,1.39503901,112860.0,112850.0,61.0017961]
[1758545152221,1.64219801,112860.0,112850.0,61.0017961]
[1758545152485,1.65876619,112860.0,112850.0,61.0017961]
[1758545153427,1.65876619,112860.0,112850.0,60.88958643]
[1758545153628,1.65876619,112860.0,112850.0,60.91318643]
[1758545154089,1.65876619,112860.0,112850.0,60.88958643]
[1758545154760,1.17948619,112860.0,112850.0,60.91624643]
[1758545154963,1.65048248,112860.0,112850.0,60.91624643]
[1758545155181,1.65876722,112860.0,112850.0,60.91624643]
[1758545155424,1.65876804,112860.0,112850.0,60.91624643]
[1758545155635,1.65876804,112860.0,112850.0,60.9839384]
[1758545156736,1.65876804,112860.0,112850.0,60.91624643]
[1758545157167,1.65876804,112860.0,112850.0,60.91318643]
[1758545157379,1.65876804,112860.0,112850.0,60.88958643]
[1758545157858,1.66778804,112860.0,112850.0,60.88958643]
[1758545158079,1.65876804,112860.0,112850.0,60.88958643]
[1758545158520,1.65876526,112860.0,112850.0,60.88958643]
[1758545159173,2.36917678,112860.0,112850.0,60.88958643]
[1758545159403,2.14499061,112860.0,112850.0,60.71236003]
[1758545159626,3.22431361,112860.0,112850.0,60.71236003]
[1758545161209,3.22431361,112860.0,112850.0,60.7122961]
[1758545161418,3.46506261,112860.0,112850.0,60.7622961]
[1758545161626,3.77147261,112860.0,112850.0,60.7622961]
[1758545161852,3.78536829,112860.0,112850.0,60.7582961]
[1758545162065,3.01379261,112860.0,112850.0,60.7582961]
[1758545162278,3.04394451,112860.0,112850.0,60.4885961]
[1758545162488,4.08922451,112860.0,112850.0,60.4885961]
[1758545162694,4.18065451,112860.0,112850.0,60.4885961]
[1758545163106,4.18506451,112860.0,112850.0,60.4885961]
[1758545163545,4.18706451,112860.0,112850.0,60.4885961]
[1758545164182,3.04594451,112860.0,112850.0,60.4885961]
[1758545164430,4.18718451,112860.0,112850.0,60.4885961]
[1758545165064,4.09138451,112860.0,112850.0,60.4885961]
[1758545165275,4.18722451,112860.0,112850.0,60.4885961]
[1758545168110,2.17648151,112860.0,112850.0,60.4885961]
[1758545168324,3.31796151,112860.0,112850.0,60.5116461]
[1758545168759,1.72195991,112860.0,112850.0,60.77731217]
[1758545168982,1.56531991,112860.0,112850.0,60.6920425]
[1758545169204,1.66115991,112860.0,112850.0,60.6920425]
[1758545169430,1.18183991,112860.0,112850.0,60.6920425]
[1758545169637,1.38239991,112860.0,112850.0,60.69196263]
[1758545169838,1.66115991,112860.0,112850.0,60.69196263]
[1758545170406,1.65915991,112860.0,112850.0,60.69196263]
[1758545171053,0.90107991,112860.0,112850.0,60.69196263]
[1758545171352,1.65915991,112860.0,112850.0,60.69196263]
[1758545171759,1.65915991,112860.0,112850.0,60.69596263]
[1758545171977,0.90107991,112860.0,112850.0,60.69596263]
[1758545172159,1.65907991,112860.0,112850.0,60.7812323]
[1758545172365,1.65907991,112860.0,112850.0,61.0509323]
[1758545172783,1.65906173,112860.0,112850.0,61.0509323]
[1758545172984,1.65902173,112860.0,112850.0,60.96566263]
[1758545173786,1.83623243,112860.0,112850.0,60.96566263]
[1758545173991,1.8196696,112860.0,112850.0,60.96566263]
[1758545174348,1.83620424,112860.0,112850.0,60.96566263]
[1758545174754,1.65899354,112860.0,112850.0,60.96566263]
[1758545174932,1.83620424,112860.0,112850.0,60.96566263]
[1758545175359,1.83620424,112860.0,112850.0,60.78843623]
[1758545175576,1.83620424,112860.0,112850.0,60.96566263]
[1758545175861,1.83620424,112860.0,112850.0,60.76221623]
[1758545175862,3.24764624,112860.0,112850.0,60.76221623]
[1758545176260,3.24503624,112860.0,112850.0,60.76221623]
[1758545176398,3.24503624,112860.0,112850.0,60.75821623]
[1758545176612,3.54503624,112860.0,112850.0,60.75821623]
[1758545177021,3.29987724,112860.0,112850.0,60.75821623]
[1758545177246,3.29987724,112860.0,112850.0,60.78145623]
[1758545177449,3.29987724,112860.0,112850.0,60.78440623]
[1758545177650,2.81625524,112860.0,112850.0,60.78440623]
[1758545178296,2.32193724,112860.0,112850.0,60.78440623]
[1758545178512,1.76190624,112860.0,112850.0,60.96163263]
[1758545178711,1.03823979,112860.0,112850.0,60.96163263]
[1758545178911,1.03823979,112860.0,112850.0,60.97771964]
[1758545178912,1.97433049,112860.0,112850.0,60.97771964]
[1758545179119,1.70131979,112860.0,112850.0,60.97771964]
[1758545179364,1.79715979,112860.0,112850.0,60.97771964]
[1758545179880,1.79715979,112860.0,112850.0,60.96163263]
[1758545181740,1.97437049,112860.0,112850.0,60.96163263]
[1758545181941,1.97171233,112860.0,112850.0,60.96163263]
[1758545183647,1.97172186,112860.0,112850.0,60.78440623]
[1758545184074,1.97172032,112860.0,112850.0,60.78440623]
[1758545184294,2.90202232,112860.0,112850.0,60.78145623]
[1758545184715,2.9020237,112860.0,112850.0,60.78145623]
[1758545185405,2.8214237,112860.0,112850.0,60.78145623]
[1758545185618,2.6778707,112860.0,112850.0,60.78440623]
[1758545185826,2.6778707,112860.0,112850.0,60.75821623]
[1758545186268,2.6778707,112860.0,112850.0,60.78145623]
[1758545186484,2.6778707,112860.0,112850.0,60.78440623]
[1758545187099,2.6778814,112860.0,112850.0,60.78440623]
[1758545187883,2.6778814,112860.0,112850.0,60.75821623]
[1758545188683,2.9778814,112860.0,112850.0,60.75821623]
[1758545188883,3.2869014,112860.0,112850.0,60.75821623]
[1758545189096,2.5279814,112860.0,112850.0,60.75821623]
[1758545189295,3.6703814,112860.0,112850.0,60.75821623]
[1758545190139,3.6703814,112860.0,112850.0,60.48851623]
[1758545191194,3.6677714,112860.0,112850.0,60.48851623]
[1758545191376,3.6613614,112860.0,112850.0,60.48851623]
[1758545191572,3.66136678,112860.0,112850.0,60.48851623]
[1758545191780,3.66136872,112860.0,112850.0,60.48851623]
[1758545191983,3.67526473,112860.0,112850.0,60.48851623]
[1758545192766,3.67787473,112860.0,112850.0,60.48851623]
[1758545192990,2.53547473,112860.0,112850.0,60.48851623]
[1758545193227,3.66128872,112860.0,112850.0,60.48851623]
[1758545193413,3.66389872,112860.0,112850.0,60.48851623]
[1758545193641,3.67030872,112860.0,112850.0,60.48851623]
[1758545193823,2.52157872,112860.0,112850.0,60.48851623]
[1758545194020,3.65371419,112860.0,112850.0,60.48851623]
[1758545194224,3.67026771,112860.0,112850.0,60.48851623]
[1758545194593,3.66385771,112860.0,112850.0,60.48851623]
[1758545196096,3.66124771,112860.0,112850.0,60.48851623]
[1758545196301,3.18184771,112860.0,112850.0,60.48851623]
[1758545196511,3.67506379,112860.0,112850.0,60.48851623]
[1758545196725,3.57922379,112860.0,112850.0,60.48851623]
[1758545196939,3.67506379,112860.0,112850.0,60.48851623]
[1758545197346,3.67506379,112860.0,112850.0,60.51269623]
[1758545198209,3.67506379,112860.0,112850.0,60.48851623]
[1758545198979,3.68356379,112860.0,112850.0,60.48851623]
[1758545199589,2.54136379,112860.0,112850.0,60.48851623]
[1758545199943,2.54136379,112860.0,112850.0,60.51269623]
[1758545200148,3.68356379,112860.0,112850.0,60.51565623]
[1758545200732,2.54136379,112860.0,112850.0,60.51565623]
[1758545200948,2.88446779,112860.0,112850.0,60.51565623]
[1758545201145,2.02166779,112860.0,112850.0,60.51565623]